[Event "Early-Titled-Tuesday-Blitz-January-16-2024"]
[Site "Chess.com"]
[Date "2024.01.16"]
[Round "7"]
[White "hakanazeri2"]
[Black "TregubovP"]
[Result "1-0"]
[WhiteElo "2550"]
[BlackElo "2671"]
[TimeControl "180+1"]
[EndTime "9:16:51 PST"]
[Termination "hakanazeri2 won by resignation"]

1. Nf3 {[%clk 0:03:00.9]} 1... c5 {[%clk 0:02:59]} 2. c4 {[%clk 0:02:57.7]} 2...
Nf6 {[%clk 0:02:58]} 3. Nc3 {[%clk 0:02:56.1]} 3... Nc6 {[%clk 0:02:57.8]} 4. g3
{[%clk 0:02:55]} 4... d5 {[%clk 0:02:57.5]} 5. d4 {[%clk 0:02:53.6]} 5... cxd4
{[%clk 0:02:55.5]} 6. Nxd4 {[%clk 0:02:54.5]} 6... dxc4 {[%clk 0:02:56.1]} 7.
Nxc6 {[%clk 0:02:50.2]} 7... Qxd1+ {[%clk 0:02:55.7]} 8. Nxd1 {[%clk 0:02:48.9]}
8... bxc6 {[%clk 0:02:56.2]} 9. Ne3 {[%clk 0:02:48.7]} 9... e6 {[%clk
0:02:49.2]} 10. Bg2 {[%clk 0:02:48.5]} 10... Nd5 {[%clk 0:02:38.3]} 11. Nxc4
{[%clk 0:02:47.5]} 11... Bb4+ {[%clk 0:02:37.9]} 12. Bd2 {[%clk 0:02:43.3]}
12... Rb8 {[%clk 0:02:38]} 13. Rc1 {[%clk 0:02:40]} 13... Ba6 {[%clk 0:02:35.3]}
14. b3 {[%clk 0:02:37.1]} 14... Ba3 {[%clk 0:02:26.1]} 15. Nxa3 {[%clk
0:02:35.9]} 1-0

[Event "Early-Titled-Tuesday-Blitz-January-16-2024"]
[Site "Chess.com"]
[Date "2024.01.16"]
[Round "7"]
[White "GodDMuhammad"]
[Black "aistrel"]
[Result "1-0"]
[WhiteElo "2392"]
[BlackElo "2542"]
[TimeControl "180+1"]
[EndTime "9:18:07 PST"]
[Termination "GodDMuhammad won by checkmate"]

1. f4 {[%clk 0:03:00.9]} 1... d5 {[%clk 0:02:53.9]} 2. Nf3 {[%clk 0:02:59.2]}
2... Nc6 {[%clk 0:02:51.4]} 3. g3 {[%clk 0:02:57.8]} 3... f6 {[%clk 0:02:51.2]}
4. Bg2 {[%clk 0:02:56.5]} 4... e5 {[%clk 0:02:51.3]} 5. d3 {[%clk 0:02:56.4]}
5... Bf5 {[%clk 0:02:40.6]} 6. Nh4 {[%clk 0:02:54]} 6... Be6 {[%clk 0:02:40.2]}
7. fxe5 {[%clk 0:02:50.9]} 7... fxe5 {[%clk 0:02:36.4]} 8. c3 {[%clk 0:02:42.1]}
8... Bc5 {[%clk 0:02:27.9]} 9. b4 {[%clk 0:02:41.6]} 9... Bb6 {[%clk 0:02:27]}
10. b5 {[%clk 0:02:40.9]} 10... Nce7 {[%clk 0:02:21.2]} 11. Ba3 {[%clk
0:02:35.1]} 11... Ng6 {[%clk 0:02:09.2]} 12. Nxg6 {[%clk 0:02:31.2]} 12... hxg6
{[%clk 0:02:10.1]} 13. Nd2 {[%clk 0:02:31.6]} 13... Qg5 {[%clk 0:02:09.2]} 14.
Nf3 {[%clk 0:02:30.4]} 14... Qh5 {[%clk 0:02:08.1]} 15. Qa4 {[%clk 0:02:20.6]}
15... Nf6 {[%clk 0:01:53.7]} 16. h3 {[%clk 0:02:18.3]} 16... e4 {[%clk
0:01:48.1]} 17. dxe4 {[%clk 0:02:08.6]} 17... Nxe4 {[%clk 0:01:49]} 18. Nd4
{[%clk 0:02:09.2]} 18... Nxc3 {[%clk 0:01:40.6]} 19. Qb4 {[%clk 0:02:08.7]}
19... Bxd4 {[%clk 0:01:41.1]} 20. Qe7# {[%clk 0:02:08.3]} 1-0

[Event "Early-Titled-Tuesday-Blitz-January-16-2024"]
[Site "Chess.com"]
[Date "2024.01.16"]
[Round "7"]
[White "adotand"]
[Black "AGW2016"]
[Result "1-0"]
[WhiteElo "2874"]
[BlackElo "2612"]
[TimeControl "180+1"]
[EndTime "9:18:12 PST"]
[Termination "adotand won by resignation"]

1. Nf3 {[%clk 0:03:00.9]} 1... Nf6 {[%clk 0:02:59.9]} 2. c4 {[%clk 0:03:01.6]}
2... g6 {[%clk 0:03:00.4]} 3. e3 {[%clk 0:03:02.4]} 3... Bg7 {[%clk 0:03:01.1]}
4. d4 {[%clk 0:03:03.2]} 4... O-O {[%clk 0:03:01.8]} 5. Nc3 {[%clk 0:03:03.4]}
5... c5 {[%clk 0:03:02.1]} 6. Be2 {[%clk 0:03:04.2]} 6... cxd4 {[%clk
0:03:02.2]} 7. exd4 {[%clk 0:03:05.1]} 7... d5 {[%clk 0:03:03]} 8. O-O {[%clk
0:03:05.1]} 8... dxc4 {[%clk 0:03:03.4]} 9. Bxc4 {[%clk 0:03:05.6]} 9... Bg4
{[%clk 0:03:03.8]} 10. Be3 {[%clk 0:03:04.4]} 10... Nc6 {[%clk 0:03:03.9]} 11.
d5 {[%clk 0:03:03.8]} 11... Ne5 {[%clk 0:03:03.5]} 12. Be2 {[%clk 0:03:04.3]}
12... Nxf3+ {[%clk 0:03:03.9]} 13. Bxf3 {[%clk 0:03:05.1]} 13... Bxf3 {[%clk
0:03:04.7]} 14. Qxf3 {[%clk 0:03:06]} 14... Rc8 {[%clk 0:03:04.6]} 15. Rad1
{[%clk 0:03:03.8]} 15... a6 {[%clk 0:03:04.7]} 16. Rfe1 {[%clk 0:03:01.9]} 16...
Ne8 {[%clk 0:03:04.7]} 17. Bg5 {[%clk 0:02:59.2]} 17... Bf6 {[%clk 0:03:01.9]}
18. h4 {[%clk 0:02:58.2]} 18... h5 {[%clk 0:02:57]} 19. Ne4 {[%clk 0:02:52.6]}
19... Bxg5 {[%clk 0:02:54.4]} 20. Nxg5 {[%clk 0:02:49]} 20... Nd6 {[%clk
0:02:55.1]} 21. Qe2 {[%clk 0:02:34.1]} 21... Nf5 {[%clk 0:02:53.8]} 22. g3
{[%clk 0:02:31.6]} 22... Qd7 {[%clk 0:02:46.4]} 23. Rd2 {[%clk 0:02:24.1]} 23...
Rc5 {[%clk 0:02:46.3]} 24. Qf3 {[%clk 0:02:22.1]} 24... Rfc8 {[%clk 0:02:45.3]}
25. Ree2 {[%clk 0:02:06.1]} 25... Rc1+ {[%clk 0:02:38.7]} 26. Kh2 {[%clk
0:02:06.7]} 26... Ra1 {[%clk 0:02:36.6]} 27. Rc2 {[%clk 0:02:00.3]} 27... Rxc2
{[%clk 0:02:34.7]} 28. Rxc2 {[%clk 0:02:01.2]} 28... Rxa2 {[%clk 0:02:35.4]} 29.
d6 {[%clk 0:01:59.6]} 29... Qxd6 {[%clk 0:02:25.3]} 30. Qb3 {[%clk 0:01:58]} 1-0

[Event "Early-Titled-Tuesday-Blitz-January-16-2024"]
[Site "Chess.com"]
[Date "2024.01.16"]
[Round "7"]
[White "yaguigor"]
[Black "TrompeterImEther"]
[Result "0-1"]
[WhiteElo "2636"]
[BlackElo "2508"]
[TimeControl "180+1"]
[EndTime "9:19:18 PST"]
[Termination "TrompeterImEther won by resignation"]

1. Nf3 {[%clk 0:02:53.4]} 1... Nf6 {[%clk 0:02:59.8]} 2. c4 {[%clk 0:02:52.6]}
2... g6 {[%clk 0:02:58.5]} 3. Nc3 {[%clk 0:02:52]} 3... Bg7 {[%clk 0:02:57.4]}
4. e4 {[%clk 0:02:52.1]} 4... e5 {[%clk 0:02:57.7]} 5. Nxe5 {[%clk 0:02:34]}
5... O-O {[%clk 0:02:57.2]} 6. d4 {[%clk 0:02:28.8]} 6... Re8 {[%clk 0:02:48.8]}
7. f3 {[%clk 0:02:22.1]} 7... c5 {[%clk 0:02:45.5]} 8. Be3 {[%clk 0:02:18.5]}
8... cxd4 {[%clk 0:02:41.5]} 9. Bxd4 {[%clk 0:02:17.5]} 9... d5 {[%clk
0:02:19.2]} 10. cxd5 {[%clk 0:02:13.3]} 10... Nxe4 {[%clk 0:02:13.4]} 11. Nxe4
{[%clk 0:02:06]} 11... f5 {[%clk 0:02:07.5]} 12. Bd3 {[%clk 0:01:49.6]} 12...
fxe4 {[%clk 0:02:05.9]} 13. Bxe4 {[%clk 0:01:48.8]} 13... Bxe5 {[%clk
0:02:06.1]} 14. Bxe5 {[%clk 0:01:48.3]} 14... Rxe5 {[%clk 0:02:07]} 15. O-O
{[%clk 0:01:46.4]} 15... Bf5 {[%clk 0:02:02.5]} 16. Qd4 {[%clk 0:01:43.7]} 16...
Qd6 {[%clk 0:01:57.9]} 17. Rad1 {[%clk 0:01:25.6]} 17... Nd7 {[%clk 0:01:56.9]}
18. Bxf5 {[%clk 0:01:19.7]} 18... Rxf5 {[%clk 0:01:57]} 19. f4 {[%clk
0:01:17.7]} 19... Nb6 {[%clk 0:01:38]} 20. g3 {[%clk 0:01:11.7]} 20... Rxd5
{[%clk 0:01:36.9]} 0-1

[Event "Early-Titled-Tuesday-Blitz-January-16-2024"]
[Site "Chess.com"]
[Date "2024.01.16"]
[Round "7"]
[White "SergioMoralesG"]
[Black "cycygogne"]
[Result "1-0"]
[WhiteElo "2440"]
[BlackElo "2296"]
[TimeControl "180+1"]
[EndTime "9:19:53 PST"]
[Termination "SergioMoralesG won by resignation"]

1. d4 {[%clk 0:01:35.5]} 1... c5 {[%clk 0:02:58.7]} 2. d5 {[%clk 0:01:35]} 2...
e6 {[%clk 0:02:59.2]} 3. Nc3 {[%clk 0:01:35.2]} 3... exd5 {[%clk 0:02:59.7]} 4.
Nxd5 {[%clk 0:01:36.1]} 4... d6 {[%clk 0:03:00]} 5. g3 {[%clk 0:01:35.9]} 5...
Be6 {[%clk 0:03:00.2]} 6. Bg2 {[%clk 0:01:35.8]} 6... Nf6 {[%clk 0:03:00.1]} 7.
Bg5 {[%clk 0:01:33.2]} 7... Nc6 {[%clk 0:02:57.3]} 8. Bxf6 {[%clk 0:01:29.4]}
8... gxf6 {[%clk 0:02:56.1]} 9. Nf3 {[%clk 0:01:29.8]} 9... Bg7 {[%clk
0:02:53.7]} 10. O-O {[%clk 0:01:28.9]} 10... O-O {[%clk 0:02:53.6]} 11. c3
{[%clk 0:01:29]} 11... Ne5 {[%clk 0:02:41.2]} 12. Nh4 {[%clk 0:01:28.4]} 12...
Rc8 {[%clk 0:02:36.1]} 13. Qc2 {[%clk 0:01:28.3]} 13... Qd7 {[%clk 0:02:33.2]}
14. Rad1 {[%clk 0:01:26.2]} 14... Rfe8 {[%clk 0:02:31.9]} 15. Be4 {[%clk
0:01:24]} 15... Ng6 {[%clk 0:02:26.2]} 16. Nf5 {[%clk 0:01:21.4]} 16... Bxd5
{[%clk 0:02:18]} 17. Rxd5 {[%clk 0:01:13.9]} 17... Re6 {[%clk 0:02:14.8]} 18.
Nxg7 {[%clk 0:01:08.8]} 18... Kxg7 {[%clk 0:02:15.7]} 19. Bf5 {[%clk 0:01:09]}
19... Qc6 {[%clk 0:02:16.2]} 20. Bxe6 {[%clk 0:01:08.2]} 20... fxe6 {[%clk
0:02:17.1]} 21. Rd2 {[%clk 0:01:04.4]} 21... d5 {[%clk 0:02:14.5]} 22. f4 {[%clk
0:01:03.2]} 22... e5 {[%clk 0:02:10.3]} 23. Rfd1 {[%clk 0:00:57.2]} 23... d4
{[%clk 0:02:05.7]} 24. cxd4 {[%clk 0:00:54.9]} 24... exd4 {[%clk 0:02:06.1]} 25.
e3 {[%clk 0:00:41.8]} 25... dxe3 {[%clk 0:02:06.2]} 26. Rd7+ {[%clk 0:00:41.9]}
26... Kg8 {[%clk 0:01:54.4]} 27. Qc4+ {[%clk 0:00:37.8]} 27... Kh8 {[%clk
0:01:52.3]} 28. Qf7 {[%clk 0:00:36.6]} 1-0

[Event "Early-Titled-Tuesday-Blitz-January-16-2024"]
[Site "Chess.com"]
[Date "2024.01.16"]
[Round "7"]
[White "DAVIDHDZSTS"]
[Black "UK_23"]
[Result "0-1"]
[WhiteElo "1996"]
[BlackElo "2367"]
[TimeControl "180+1"]
[EndTime "9:19:57 PST"]
[Termination "UK_23 won by resignation"]

1. d4 {[%clk 0:02:59.5]} 1... g6 {[%clk 0:03:00]} 2. Nc3 {[%clk 0:02:58.3]} 2...
Bg7 {[%clk 0:03:00.6]} 3. Bf4 {[%clk 0:02:58.7]} 3... d6 {[%clk 0:02:59.3]} 4.
e3 {[%clk 0:02:59.2]} 4... Nd7 {[%clk 0:02:59.4]} 5. h4 {[%clk 0:02:59.6]} 5...
h6 {[%clk 0:02:59.4]} 6. Bd3 {[%clk 0:02:58.7]} 6... e5 {[%clk 0:02:58.2]} 7.
dxe5 {[%clk 0:02:57.2]} 7... dxe5 {[%clk 0:02:59.1]} 8. Bg3 {[%clk 0:02:55.5]}
8... Ne7 {[%clk 0:02:59.1]} 9. Bc4 {[%clk 0:02:32.2]} 9... c6 {[%clk 0:02:54.4]}
10. Nge2 {[%clk 0:02:26.4]} 10... Qc7 {[%clk 0:02:48.8]} 11. Qd2 {[%clk
0:02:11.6]} 11... Nb6 {[%clk 0:02:47.7]} 12. Bb3 {[%clk 0:02:09.9]} 12... a5
{[%clk 0:02:47.1]} 13. a3 {[%clk 0:01:55.9]} 13... a4 {[%clk 0:02:45.2]} 14. Ba2
{[%clk 0:01:54.7]} 14... Nf5 {[%clk 0:02:45.8]} 15. e4 {[%clk 0:01:44.1]} 15...
Nxg3 {[%clk 0:02:38.7]} 16. Nxg3 {[%clk 0:01:42.6]} 16... h5 {[%clk 0:02:39.6]}
17. O-O {[%clk 0:01:38.2]} 17... Qe7 {[%clk 0:02:37.7]} 18. Qg5 {[%clk
0:01:23.6]} 18... Bf6 {[%clk 0:02:37.4]} 19. Qe3 {[%clk 0:01:21.8]} 19... Ra6
{[%clk 0:02:31.6]} 20. Nh1 {[%clk 0:00:38.6]} 20... Bxh4 {[%clk 0:02:25.1]} 21.
f4 {[%clk 0:00:38.3]} 21... exf4 {[%clk 0:02:21.7]} 22. Qxf4 {[%clk 0:00:37.9]}
22... O-O {[%clk 0:02:11.3]} 23. Bxf7+ {[%clk 0:00:15.2]} 23... Rxf7 {[%clk
0:02:10]} 24. Qxf7+ {[%clk 0:00:08.4]} 24... Qxf7 {[%clk 0:02:09.9]} 25. Rxf7
{[%clk 0:00:07.8]} 25... Kxf7 {[%clk 0:02:10.8]} 26. Rf1+ {[%clk 0:00:07.6]}
26... Ke7 {[%clk 0:02:11]} 0-1

[Event "Early-Titled-Tuesday-Blitz-January-16-2024"]
[Site "Chess.com"]
[Date "2024.01.16"]
[Round "7"]
[White "K_A_S_T_O_R"]
[Black "MITerryble"]
[Result "1-0"]
[WhiteElo "2922"]
[BlackElo "3018"]
[TimeControl "180+1"]
[EndTime "9:20:10 PST"]
[Termination "K_A_S_T_O_R won by resignation"]

1. e4 {[%clk 0:03:00.9]} 1... c6 {[%clk 0:02:59.2]} 2. Nf3 {[%clk 0:02:58.8]}
2... d5 {[%clk 0:02:59.3]} 3. d3 {[%clk 0:02:59]} 3... g6 {[%clk 0:02:59.6]} 4.
Qe2 {[%clk 0:02:56.7]} 4... Bg7 {[%clk 0:02:59.5]} 5. Nbd2 {[%clk 0:02:56.8]}
5... Nh6 {[%clk 0:02:57.3]} 6. g3 {[%clk 0:02:56.7]} 6... O-O {[%clk 0:02:57.2]}
7. Bg2 {[%clk 0:02:57]} 7... e5 {[%clk 0:02:57.2]} 8. O-O {[%clk 0:02:56.2]}
8... Re8 {[%clk 0:02:57.1]} 9. a3 {[%clk 0:02:50.2]} 9... f5 {[%clk 0:02:53]}
10. b4 {[%clk 0:02:47.9]} 10... Nf7 {[%clk 0:02:51.3]} 11. Bb2 {[%clk
0:02:47.7]} 11... Nd7 {[%clk 0:02:48.8]} 12. c4 {[%clk 0:02:44.7]} 12... Nb6
{[%clk 0:02:42.4]} 13. Rac1 {[%clk 0:02:36.1]} 13... dxe4 {[%clk 0:02:20]} 14.
dxe4 {[%clk 0:02:35.7]} 14... c5 {[%clk 0:02:20.6]} 15. Nb3 {[%clk 0:02:30.5]}
15... Na4 {[%clk 0:02:17.3]} 16. Ba1 {[%clk 0:02:29.7]} 16... Qc7 {[%clk
0:02:12.5]} 17. Rfd1 {[%clk 0:02:25.5]} 17... Rb8 {[%clk 0:02:02.2]} 18. Ne1
{[%clk 0:02:22.4]} 18... f4 {[%clk 0:01:56.4]} 19. Nd3 {[%clk 0:02:19.2]} 19...
b6 {[%clk 0:01:47.4]} 20. b5 {[%clk 0:02:16.8]} 20... a6 {[%clk 0:01:39.2]} 21.
Nd2 {[%clk 0:02:15.2]} 21... Be6 {[%clk 0:01:22.9]} 22. Nf3 {[%clk 0:02:07.1]}
22... axb5 {[%clk 0:01:14.6]} 23. cxb5 {[%clk 0:02:07.1]} 23... Bb3 {[%clk
0:01:14.9]} 24. Re1 {[%clk 0:02:00.5]} 24... fxg3 {[%clk 0:01:07.2]} 25. hxg3
{[%clk 0:01:59]} 25... Rbd8 {[%clk 0:01:06.5]} 26. Nd2 {[%clk 0:01:54.9]} 26...
Be6 {[%clk 0:01:05.5]} 27. Nc4 {[%clk 0:01:51.6]} 27... Qd7 {[%clk 0:00:58.5]}
28. Ndxe5 {[%clk 0:01:46]} 28... Qxb5 {[%clk 0:00:57.8]} 29. Nxf7 {[%clk
0:01:43]} 29... Bxf7 {[%clk 0:00:58.7]} 30. Bxg7 {[%clk 0:01:36.6]} 30... Kxg7
{[%clk 0:00:55.7]} 31. Nd6 {[%clk 0:01:33.8]} 31... c4 {[%clk 0:00:45.7]} 32.
Nxb5 {[%clk 0:01:33.4]} 1-0

[Event "Early-Titled-Tuesday-Blitz-January-16-2024"]
[Site "Chess.com"]
[Date "2024.01.16"]
[Round "7"]
[White "ChessBliss09"]
[Black "stepanosinovsky"]
[Result "0-1"]
[WhiteElo "2093"]
[BlackElo "2389"]
[TimeControl "180+1"]
[EndTime "9:20:14 PST"]
[Termination "stepanosinovsky won by checkmate"]

1. e4 {[%clk 0:03:00.9]} 1... e5 {[%clk 0:02:59.3]} 2. Nf3 {[%clk 0:03:00.4]}
2... Nc6 {[%clk 0:03:00]} 3. Bc4 {[%clk 0:03:00.1]} 3... Nf6 {[%clk 0:02:59.8]}
4. d3 {[%clk 0:02:59.7]} 4... Be7 {[%clk 0:02:54.5]} 5. c3 {[%clk 0:02:59]} 5...
O-O {[%clk 0:02:52.6]} 6. O-O {[%clk 0:02:58.5]} 6... d5 {[%clk 0:02:50.3]} 7.
exd5 {[%clk 0:02:53.8]} 7... Nxd5 {[%clk 0:02:51.2]} 8. h3 {[%clk 0:02:46.2]}
8... Kh8 {[%clk 0:02:48.7]} 9. Re1 {[%clk 0:02:45.2]} 9... Qd6 {[%clk
0:02:29.2]} 10. b4 {[%clk 0:02:38.6]} 10... a6 {[%clk 0:02:20.9]} 11. a4 {[%clk
0:02:20.1]} 11... f5 {[%clk 0:02:16.1]} 12. Ba3 {[%clk 0:02:19.4]} 12... Nf4
{[%clk 0:02:00.3]} 13. g3 {[%clk 0:01:11.2]} 13... Nxh3+ {[%clk 0:01:55.8]} 14.
Kg2 {[%clk 0:01:11.3]} 14... f4 {[%clk 0:01:47.7]} 15. b5 {[%clk 0:01:08.6]}
15... Qg6 {[%clk 0:01:39]} 16. bxc6 {[%clk 0:01:02.5]} 16... Nxf2 {[%clk
0:01:37.9]} 17. Qe2 {[%clk 0:00:07.4]} 17... Qxg3+ {[%clk 0:01:35.8]} 18. Kf1
{[%clk 0:00:04.9]} 18... Bh3# {[%clk 0:01:36.6]} 0-1

[Event "Early-Titled-Tuesday-Blitz-January-16-2024"]
[Site "Chess.com"]
[Date "2024.01.16"]
[Round "7"]
[White "A-Fier"]
[Black "jinbojinbo"]
[Result "0-1"]
[WhiteElo "2784"]
[BlackElo "2655"]
[TimeControl "180+1"]
[EndTime "9:20:18 PST"]
[Termination "jinbojinbo won by resignation"]

1. e4 {[%clk 0:03:00.9]} 1... c5 {[%clk 0:02:58.4]} 2. Nf3 {[%clk 0:03:00.9]}
2... d6 {[%clk 0:02:58.6]} 3. b4 {[%clk 0:03:01.6]} 3... cxb4 {[%clk 0:02:55.9]}
4. a3 {[%clk 0:03:02.2]} 4... bxa3 {[%clk 0:02:52.1]} 5. d4 {[%clk 0:03:02.3]}
5... g6 {[%clk 0:02:46.6]} 6. Bd3 {[%clk 0:03:01.6]} 6... Bg7 {[%clk 0:02:46.7]}
7. c3 {[%clk 0:03:02.2]} 7... Nf6 {[%clk 0:02:46.8]} 8. h4 {[%clk 0:03:02.2]}
8... h5 {[%clk 0:02:45.9]} 9. Ng5 {[%clk 0:03:00.8]} 9... Nc6 {[%clk 0:02:42]}
10. Nxa3 {[%clk 0:02:58.2]} 10... O-O {[%clk 0:02:31.4]} 11. Be3 {[%clk
0:02:57.5]} 11... a6 {[%clk 0:02:25.7]} 12. f3 {[%clk 0:02:54]} 12... Bd7 {[%clk
0:02:15.5]} 13. g4 {[%clk 0:02:32.6]} 13... hxg4 {[%clk 0:02:14.6]} 14. h5
{[%clk 0:02:33.2]} 14... gxh5 {[%clk 0:02:08]} 15. f4 {[%clk 0:02:30.5]} 15...
e5 {[%clk 0:02:01.2]} 16. Nc4 {[%clk 0:02:30.7]} 16... exd4 {[%clk 0:01:48.2]}
17. cxd4 {[%clk 0:02:29.1]} 17... Nb4 {[%clk 0:01:45.7]} 18. e5 {[%clk
0:02:27.5]} 18... dxe5 {[%clk 0:01:36]} 19. fxe5 {[%clk 0:02:26.5]} 19... Re8
{[%clk 0:01:29.8]} 20. exf6 {[%clk 0:02:21.9]} 20... Qxf6 {[%clk 0:01:26.4]} 21.
Ne5 {[%clk 0:02:22.1]} 21... Rxe5 {[%clk 0:01:13.8]} 22. dxe5 {[%clk 0:02:22.2]}
22... Qxe5 {[%clk 0:01:14.7]} 23. Bh7+ {[%clk 0:02:09.5]} 23... Kf8 {[%clk
0:01:14]} 24. Kf2 {[%clk 0:02:09.8]} 24... g3+ {[%clk 0:00:59.3]} 25. Kf3 {[%clk
0:01:59.3]} 25... Bg4+ {[%clk 0:00:57.9]} 26. Kg2 {[%clk 0:01:54.9]} 26... Bxd1
{[%clk 0:00:57.7]} 27. Ne4 {[%clk 0:01:48.8]} 27... Qxa1 {[%clk 0:00:42.6]} 28.
Bc5+ {[%clk 0:01:44.2]} 28... Ke8 {[%clk 0:00:42.5]} 29. Bf5 {[%clk 0:01:39.7]}
29... Bf3+ {[%clk 0:00:37.6]} 30. Kxg3 {[%clk 0:01:40.1]} 30... Be5+ {[%clk
0:00:35.3]} 0-1

[Event "Early-Titled-Tuesday-Blitz-January-16-2024"]
[Site "Chess.com"]
[Date "2024.01.16"]
[Round "7"]
[White "SujanaLohani"]
[Black "kai_nov"]
[Result "0-1"]
[WhiteElo "1996"]
[BlackElo "2319"]
[TimeControl "180+1"]
[EndTime "9:20:31 PST"]
[Termination "kai_nov won by resignation"]

1. d4 {[%clk 0:02:56.5]} 1... d5 {[%clk 0:02:58.4]} 2. Nf3 {[%clk 0:02:57.4]}
2... Nf6 {[%clk 0:02:55.3]} 3. c4 {[%clk 0:02:58.3]} 3... e6 {[%clk 0:02:55.9]}
4. g3 {[%clk 0:02:57]} 4... Be7 {[%clk 0:02:56.1]} 5. Bg2 {[%clk 0:02:53.9]}
5... O-O {[%clk 0:02:56.5]} 6. O-O {[%clk 0:02:54.5]} 6... c6 {[%clk 0:02:56.1]}
7. Qc2 {[%clk 0:02:54.2]} 7... Nbd7 {[%clk 0:02:54.1]} 8. Rd1 {[%clk 0:02:53.9]}
8... dxc4 {[%clk 0:02:51.8]} 9. Qxc4 {[%clk 0:02:49.1]} 9... Nb6 {[%clk
0:02:50.2]} 10. Qc2 {[%clk 0:02:48.5]} 10... Nfd5 {[%clk 0:02:36.2]} 11. Nc3
{[%clk 0:02:49.4]} 11... Nb4 {[%clk 0:02:35.8]} 12. Qb3 {[%clk 0:02:48.4]} 12...
a5 {[%clk 0:02:33.8]} 13. a4 {[%clk 0:02:25.4]} 13... N6d5 {[%clk 0:02:32.7]}
14. e4 {[%clk 0:02:23.4]} 14... Nxc3 {[%clk 0:02:30.6]} 15. bxc3 {[%clk
0:02:23.1]} 15... Na6 {[%clk 0:02:27]} 16. Ba3 {[%clk 0:02:19.4]} 16... Bxa3
{[%clk 0:02:25.7]} 17. Rxa3 {[%clk 0:02:14.1]} 17... Rb8 {[%clk 0:02:23.8]} 18.
d5 {[%clk 0:02:04.2]} 18... exd5 {[%clk 0:02:14.4]} 19. exd5 {[%clk 0:02:03.6]}
19... cxd5 {[%clk 0:02:11.8]} 20. Rxd5 {[%clk 0:02:02.9]} 20... Qe7 {[%clk
0:02:08.5]} 21. Rxa5 {[%clk 0:01:57.7]} 21... Be6 {[%clk 0:02:06.5]} 22. Qb2
{[%clk 0:01:54.6]} 22... Rfd8 {[%clk 0:01:56.5]} 23. Nd4 {[%clk 0:01:54.1]}
23... Nc5 {[%clk 0:01:43.4]} 24. Qb4 {[%clk 0:01:42.8]} 24... b6 {[%clk
0:01:39.7]} 25. Rb5 {[%clk 0:01:37.7]} 25... Bd7 {[%clk 0:01:34.7]} 26. Rxb6
{[%clk 0:01:35.4]} 26... Qe1+ {[%clk 0:01:33.4]} 27. Bf1 {[%clk 0:01:32.4]}
27... Bh3 {[%clk 0:01:30.3]} 28. Qc4 {[%clk 0:00:57.8]} 28... Rxb6 {[%clk
0:01:25.1]} 29. a5 {[%clk 0:00:46.9]} 29... Rb1 {[%clk 0:01:23.1]} 0-1

[Event "Early-Titled-Tuesday-Blitz-January-16-2024"]
[Site "Chess.com"]
[Date "2024.01.16"]
[Round "7"]
[White "DamianoLew95"]
[Black "Predo63"]
[Result "1-0"]
[WhiteElo "2663"]
[BlackElo "2500"]
[TimeControl "180+1"]
[EndTime "9:20:35 PST"]
[Termination "DamianoLew95 won by resignation"]

1. e4 {[%clk 0:03:00.9]} 1... c6 {[%clk 0:02:59.4]} 2. Nf3 {[%clk 0:03:00.7]}
2... d5 {[%clk 0:02:59.6]} 3. d3 {[%clk 0:03:01.6]} 3... dxe4 {[%clk 0:02:59.3]}
4. dxe4 {[%clk 0:03:02.5]} 4... Qxd1+ {[%clk 0:02:58.8]} 5. Kxd1 {[%clk
0:03:03.4]} 5... Bg4 {[%clk 0:02:58.4]} 6. Bd3 {[%clk 0:03:03.7]} 6... Nd7
{[%clk 0:02:58.1]} 7. Ke2 {[%clk 0:03:04.6]} 7... Nc5 {[%clk 0:02:55.1]} 8. Be3
{[%clk 0:03:04.6]} 8... Nxd3 {[%clk 0:02:55]} 9. cxd3 {[%clk 0:03:04.5]} 9...
Bxf3+ {[%clk 0:02:50.2]} 10. gxf3 {[%clk 0:03:02.5]} 10... e5 {[%clk 0:02:50.4]}
11. Nd2 {[%clk 0:03:02.3]} 11... f6 {[%clk 0:02:49.2]} 12. a4 {[%clk 0:03:01.5]}
12... Bb4 {[%clk 0:02:48.7]} 13. Nc4 {[%clk 0:02:59.7]} 13... a5 {[%clk
0:02:35.6]} 14. f4 {[%clk 0:02:54.3]} 14... exf4 {[%clk 0:02:32]} 15. Bxf4
{[%clk 0:02:55.2]} 15... Ne7 {[%clk 0:02:31.6]} 16. Rhg1 {[%clk 0:02:53.5]}
16... Kf7 {[%clk 0:02:31]} 17. h4 {[%clk 0:02:36.9]} 17... Rhd8 {[%clk
0:02:29.4]} 18. h5 {[%clk 0:02:33.4]} 18... g5 {[%clk 0:02:26.1]} 19. hxg6+
{[%clk 0:02:29.2]} 19... hxg6 {[%clk 0:02:26]} 20. Rh1 {[%clk 0:02:27]} 20...
Rh8 {[%clk 0:02:25.8]} 21. Bd2 {[%clk 0:02:23.6]} 21... Ke6 {[%clk 0:02:17.4]}
22. Rxh8 {[%clk 0:02:19.4]} 22... Rxh8 {[%clk 0:02:16.8]} 23. Nxa5 {[%clk
0:02:19.7]} 23... Bxa5 {[%clk 0:02:13.8]} 24. Bxa5 {[%clk 0:02:20.6]} 24... g5
{[%clk 0:02:07.6]} 25. b4 {[%clk 0:02:10.6]} 25... Ng6 {[%clk 0:02:06.1]} 26.
Bc7 {[%clk 0:02:09.9]} 26... Rc8 {[%clk 0:02:04.6]} 27. Bg3 {[%clk 0:02:08.6]}
27... Ra8 {[%clk 0:02:04.6]} 28. a5 {[%clk 0:02:06.8]} 28... Ne5 {[%clk
0:02:01.9]} 29. Bxe5 {[%clk 0:02:06.2]} 29... Kxe5 {[%clk 0:01:59.2]} 30. Rh1
{[%clk 0:01:47.5]} 30... b6 {[%clk 0:01:58.4]} 31. axb6 {[%clk 0:01:45]} 31...
Rb8 {[%clk 0:01:58.3]} 32. Ke3 {[%clk 0:01:39.7]} 32... Rxb6 {[%clk 0:01:58.4]}
33. Rc1 {[%clk 0:01:40.3]} 33... Kd6 {[%clk 0:01:43.4]} 34. Rc4 {[%clk 0:01:38]}
34... Ra6 {[%clk 0:01:42.9]} 35. f4 {[%clk 0:01:38.1]} 35... gxf4+ {[%clk
0:01:41.9]} 36. Kxf4 {[%clk 0:01:38.3]} 36... Ra3 {[%clk 0:01:42.1]} 37. Rd4+
{[%clk 0:01:31.7]} 37... Ke6 {[%clk 0:01:41.4]} 38. Ke3 {[%clk 0:01:32.1]} 38...
Rb3 {[%clk 0:01:41]} 39. Kd2 {[%clk 0:01:29.3]} 39... Ke5 {[%clk 0:01:40.7]} 40.
Rc4 {[%clk 0:01:27.5]} 40... Kd6 {[%clk 0:01:40.8]} 41. Kc2 {[%clk 0:01:27.9]}
41... Ra3 {[%clk 0:01:41.1]} 42. Rc5 {[%clk 0:01:28.2]} 42... Ra2+ {[%clk
0:01:36.9]} 43. Kc3 {[%clk 0:01:28.4]} 43... Ra1 {[%clk 0:01:37]} 44. Rf5 {[%clk
0:01:28.5]} 44... Ke6 {[%clk 0:01:37.1]} 45. Kd4 {[%clk 0:01:20.5]} 45... Ra3
{[%clk 0:01:27.7]} 46. Kc4 {[%clk 0:01:09.1]} 46... Ke7 {[%clk 0:01:25.8]} 47.
Ra5 {[%clk 0:01:08.2]} 1-0